[Event "FIDE World Cup G12-B 2024"]
[Site "Batumi"]
[Date "2024.06.28"]
[Round "6.7"]
[White "Siddhi Rao"]
[Black "Gao, Lilianna"]
[Result "0-1"]
[ECO "B36"]
[WhiteElo "1601"]
[BlackElo "1646"]
[Annotator "NA RC"]
[PlyCount "82"]
[EventDate "2024.06.23"]
[EventType "swiss"]
[EventCountry "GEO"]
[SourceTitle "playchess.com"]
[Source "ChessBase"]
[SourceQuality "1"]
[TimeControl "5400+30"]

1. e4 {[%emt 0:00:02]} c5 {[%emt 0:00:15]} 2. Nf3 {[%emt 0:00:03]} Nc6 {[%emt 0:00:32]} 3. d4 {[%emt 0:00:07]} cxd4 {[%emt 0:00:11]} 4. Nxd4 {[%emt 0:00:05]} g6 {[%emt 0:00:44]} 5. c4 {[%emt 0:00:05]} Nf6 {[%emt 0:00:12]} 6. Nc3 {[%emt 0:00:05]} d6 {[%emt 0:00:36]} 7. Be2 {[%emt 0:00:05]} Nxd4 {[%emt 0:00:20]} 8. Qxd4 {[%emt 0:00:04]} Bg7 {[%emt 0:00:43]} 9. Be3 {[%emt 0:00:06]} O-O {[%emt 0:00:40]} 10. Qd3 {[%emt 0:00:06]} a5 {[%emt 0:02:06]} 11. O-O {[%emt 0:00:37]} a4 {[%emt 0:01:14]} 12. h3 {[%emt 0:04:58]} Qa5 {[%emt 0:03:27]} 13. f4 {[%emt 0:04:10]} a3 {[%emt 0:07:56]} 14. b4 {[%emt 0:02:59]} Qxb4 {[%emt 0:19:15]} 15. Rab1 {[%emt 0:00:29]} Qa5 {[%emt 0:00:36]} 16. Bb6 {[%emt 0:01:09]} Qa6 {[%emt 0:00:42]} 17. Qe3 {[%emt 0:00:21]} Be6 {[%emt 0:04:09]} 18. Nb5 {[%emt 0:21:26]} Rac8 {[%emt 0:09:04]} 19. Rfc1 {[%emt 0:21:57]} Nd7 {[%emt 0:04:52]} 20. Bd4 {[%emt 0:08:24]} Nc5 {[%emt 0:03:33]} 21. Bxg7 {[%emt 0:01:17]} Kxg7 {[%emt 0:00:25]} 22. Qd4+ {[%emt 0:01:42]} Kg8 {[%emt 0:02:50]} 23. Rc3 {[%emt 0:04:06]} Nxe4 {[%emt 0:12:10]} 24. Rxa3 {[%emt 0:00:18]} Qc6 {[%emt 0:00:17]} 25. Bf3 {[%emt 0:06:33]} f5 {[%emt 0:01:08]} 26. Bxe4 {[%emt 0:05:56]} Qxe4 {[%emt 0:04:13]} 27. Qxe4 {[%emt 0:05:04]} fxe4 {[%emt 0:00:02]} 28. Nd4 {[%emt 0:00:30]} Bxc4 {[%emt 0:00:57]} 29. Rxb7 {[%emt 0:00:16]} Rxf4 {[%emt 0:04:46]} 30. Raa7 {[%emt 0:00:18]} e3 {[%emt 0:01:23]} 31. Rxe7 {[%emt 0:00:27]} Rxd4 {[%emt 0:00:45]} 32. Rxe3 {[%emt 0:12:45]} Rd1+ {[%emt 0:02:06]} 33. Kh2 {[%emt 0:00:00]} Rf8 {[%emt 0:01:27]} 34. a4 {[%emt 0:00:00]} Bd5 {[%emt 0:00:48]} 35. g4 {[%emt 0:00:00]} g5 {[%emt 0:01:20]} 36. Re2 {[%emt 0:00:00]} Rh1+ {[%emt 0:00:40]} 37. Kg3 {[%emt 0:00:00]} Rf3+ {[%emt 0:00:20]} 38. Kg2 {[%emt 0:00:00]} Rf7+ {[%emt 0:05:14]} 39. Kg3 {[%emt 0:00:00]} Rxa7 {[%emt 0:00:14]} 40. Rf2 {[%emt 0:00:00]} Rg1+ {[%emt 0:00:14]} 41. Rg2 {[%emt 0:00:00]} Rxg2# {[%emt 0:00:10]} 0-1

[Event "FIDE World Cup G12-B 2024"]
[Site "Batumi"]
[Date "2024.06.28"]
[Round "6.8"]
[White "Lu, Yichen"]
[Black "QUICKPEN, Deborah Ebimobo-ere"]
[Result "1-0"]
[ECO "B11"]
[WhiteElo "1561"]
[BlackElo "2048"]
[Annotator "NA RC"]
[PlyCount "87"]
[EventDate "2024.06.23"]
[EventType "swiss"]
[EventCountry "GEO"]
[SourceTitle "playchess.com"]
[Source "ChessBase"]
[SourceQuality "1"]
[TimeControl "5400+30"]

1. e4 {[%emt 0:00:03]} c6 {[%emt 0:00:06]} 2. Nc3 {[%emt 0:00:08]} d5 {[%emt 0:00:07]} 3. Nf3 {[%emt 0:00:03]} dxe4 {[%emt 0:00:06]} 4. Nxe4 {[%emt 0:00:04]} Nf6 {[%emt 0:00:07]} 5. Qe2 {[%emt 0:00:05]} Bf5 {[%emt 0:00:51]} 6. Nxf6+ {[%emt 0:02:36] B11: Caro-Kann: Two Knights Variation.} gxf6 {[%emt 0:00:07]} 7. d3 {[%emt 0:00:57]} Nd7 {[%emt 0:01:03]} 8. Bd2 {[%emt 0:02:11]} e6 {[%emt 0:02:12]} 9. Nd4 {[%emt 0:04:31]} (9. O-O-O $14 {is more appropriate.}) 9... Bg6 {[%emt 0:00:32]} 10. h4 {[%emt 0:00:55]} h5 {[%emt 0:02:00]} 11. f4 {[%emt 0:05:51]} Nc5 {[%emt 0:02:58]} 12. Bc3 {[%emt 0:01:52]} (12. Qf2 $11 {feels stronger.}) 12... Qd5 {[%emt 0:00:42]} 13. Nb3 {[%emt 0:08:40]} Nxb3 {[%emt 0:03:36]} 14. axb3 {[%emt 0:00:12]} Be7 {[%emt 0:00:06]} 15. Ra5 {[%emt 0:09:16]} b5 {[%emt 0:03:52]} 16. Qf3 {[%emt 0:05:44]} Qxf3 {[%emt 0:00:55]} 17. gxf3 {[%emt 0:00:04]} a6 {[%emt 0:00:18]} 18. b4 {[%emt 0:00:40]} Kd7 {[%emt 0:00:43]} 19. Ke2 {[%emt 0:02:52]} Bf5 {[%emt 0:01:08]} 20. Rg1 {[%emt 0:03:44]} e5 {[%emt 0:00:58]} 21. fxe5 {[%emt 0:00:30]} fxe5 {[%emt 0:00:06]} 22. Be1 {[%emt 0:09:57]} Rhe8 {[%emt 0:03:33]} 23. Kd1 {[%emt 0:02:23]} c5 {[%emt 0:02:03]} 24. bxc5 $1 {[%emt 0:01:09]} Bxc5 {[%emt 0:00:18]} 25. Rg5 {[%emt 0:01:35]} Bg6 {[%emt 0:00:14]} 26. Bh3+ {[%emt 0:00:58]} Kc6 {[%emt 0:00:59]} 27. f4 {[%emt 0:37:00]} e4 {[%emt 0:10:19]} (27... Be3 $142) 28. f5 {[%emt 0:00:00]} Be3 {[%emt 0:03:07]} 29. fxg6 {[%emt 0:00:00]} Bxg5 {[%emt 0:00:07]} 30. gxf7 {[%emt 0:00:00]} Rf8 {[%emt 0:00:22]} 31. hxg5 {[%emt 0:00:00]} Rxf7 {[%emt 0:00:05]} 32. Bg2 {[%emt 0:00:00]} Kb6 {[%emt 0:00:05]} 33. Bxe4 {[%emt 0:00:00]} Re8 {[%emt 0:01:04]} 34. g6 {[%emt 0:00:00]} Rf1 {[%emt 0:00:16]} 35. Ra1 {[%emt 0:00:00]} Rg1 {[%emt 0:01:24]} 36. Kd2 {[%emt 0:00:00]} Rf8 {[%emt 0:01:40]} 37. Ke2 {[%emt 0:00:00]} Rg4 {[%emt 0:01:55]} 38. Bf2+ {[%emt 0:00:00]} Kc7 {[%emt 0:00:05]} 39. Rxa6 {[%emt 0:00:00]} h4 {[%emt 0:00:25]} 40. Ra7+ $18 {[%emt 0:00:00]} Kd6 {[%emt 0:00:25]} 41. Rh7 {[%emt 0:00:00]} Re8 {[%emt 0:00:15]} 42. Kf3 {[%emt 0:00:00]} Rg5 {[%emt 0:00:54]} 43. Bxh4 {[%emt 0:00:00]} Rf8+ {[%emt 0:00:08]} 44. Rf7 {[%emt 0:08:30]} 1-0

[Event "FIDE World Cup G12-B 2024"]
[Site "Batumi"]
[Date "2024.06.28"]
[Round "6.9"]
[White "Bakhshizada, Asnad"]
[Black "Tereshchenko, Eliza"]
[Result "1/2-1/2"]
[ECO "C42"]
[WhiteElo "1748"]
[BlackElo "1694"]
[Annotator "NA RC"]
[PlyCount "193"]
[EventDate "2024.06.23"]
[EventType "swiss"]
[EventCountry "GEO"]
[SourceTitle "playchess.com"]
[Source "ChessBase"]
[SourceQuality "1"]
[TimeControl "5400+30"]

1. d4 {[%emt 0:00:04]} d5 {[%emt 0:00:06]} 2. c4 {[%emt 0:00:18]} dxc4 {[%emt 0:00:06]} 3. e3 {[%emt 0:00:13]} e5 {[%emt 0:00:06]} 4. Bxc4 {[%emt 0:01:14]} exd4 {[%emt 0:00:06]} 5. exd4 {[%emt 0:00:28]} Nf6 {[%emt 0:00:16]} 6. Nf3 {[%emt 0:00:29]} Be7 {[%emt 0:00:21]} 7. O-O {[%emt 0:00:26]} O-O {[%emt 0:00:07]} 8. Nc3 {[%emt 0:00:43]} Bg4 {[%emt 0:00:32]} 9. Be2 {[%emt 0:01:14]} Nbd7 {[%emt 0:02:58]} 10. Be3 {[%emt 0:04:34]} Nb6 {[%emt 0:05:40]} 11. Ne5 {[%emt 0:03:13]} Bxe2 {[%emt 0:02:18]} 12. Qxe2 {[%emt 0:01:00]} Nbd5 {[%emt 0:05:03]} 13. Bg5 {[%emt 0:04:49]} Nxc3 {[%emt 0:12:42]} 14. bxc3 {[%emt 0:00:19]} Nd5 {[%emt 0:01:06]} 15. Bxe7 {[%emt 0:00:23]} Qxe7 {[%emt 0:00:45]} 16. Qf3 {[%emt 0:00:26]} c6 {[%emt 0:00:35]} 17. Rab1 {[%emt 0:03:23]} f6 {[%emt 0:08:19]} 18. Nc4 {[%emt 0:03:43]} Rfe8 {[%emt 0:02:19]} 19. Qg3 {[%emt 0:02:49]} Rad8 {[%emt 0:02:47]} 20. h3 {[%emt 0:03:08]} b5 {[%emt 0:04:54]} 21. Na5 {[%emt 0:00:49]} Qd6 {[%emt 0:01:15]} 22. Qf3 {[%emt 0:01:48]} Qc7 {[%emt 0:02:40]} 23. Nb3 {[%emt 0:01:23]} Qf4 {[%emt 0:02:13]} 24. Qd3 {[%emt 0:02:02]} Qe4 {[%emt 0:06:38]} 25. Qxe4 {[%emt 0:01:57]} Rxe4 {[%emt 0:00:02]} 26. Rbc1 {[%emt 0:00:41]} Re2 {[%emt 0:00:32]} 27. c4 {[%emt 0:01:01]} Nf4 {[%emt 0:02:33]} 28. cxb5 {[%emt 0:03:18]} cxb5 {[%emt 0:00:46]} 29. Ra1 {[%emt 0:08:28]} Rb2 {[%emt 0:04:47]} 30. Rfd1 {[%emt 0:04:28]} Ne2+ {[%emt 0:02:55]} 31. Kf1 {[%emt 0:01:42]} Nc3 {[%emt 0:00:50]} 32. Rd3 {[%emt 0:02:14]} Ne4 {[%emt 0:04:36]} 33. f3 {[%emt 0:03:45]} Ng3+ {[%emt 0:00:24]} 34. Kg1 {[%emt 0:00:14]} Ne2+ {[%emt 0:01:32]} 35. Kh1 {[%emt 0:00:58]} Nf4 {[%emt 0:00:44]} 36. Re3 {[%emt 0:01:35]} Nxg2 {[%emt 0:02:54]} 37. Re4 {[%emt 0:01:09]} f5 {[%emt 0:00:09]} 38. Re7 {[%emt 0:01:02]} Nh4 {[%emt 0:00:56]} 39. Rf1 {[%emt 0:02:49]} Rxa2 {[%emt 0:03:19]} 40. Nc5 {[%emt 0:01:49]} Rxd4 {[%emt 0:04:50]} 41. Ne6 {[%emt 0:10:54]} Rdd2 {[%emt 0:06:22]} 42. Rxg7+ {[%emt 0:01:15]} Kh8 {[%emt 0:00:01]} 43. Rg3 {[%emt 0:00:42]} Rh2+ {[%emt 0:01:01]} 44. Kg1 {[%emt 0:00:10]} Rag2+ {[%emt 0:00:07]} 45. Rxg2 {[%emt 0:00:07]} Rxg2+ {[%emt 0:00:06]} 46. Kh1 {[%emt 0:00:06]} Rg6 {[%emt 0:02:18]} 47. Nd4 {[%emt 0:00:44]} Rb6 {[%emt 0:01:18]} 48. Re1 {[%emt 0:00:59]} a5 {[%emt 0:03:32]} 49. Re5 {[%emt 0:02:35]} a4 {[%emt 0:02:45]} 50. Nxb5 {[%emt 0:02:01]} Rc6 {[%emt 0:00:50]} 51. Re3 {[%emt 0:01:07]} f4 {[%emt 0:00:26]} 52. Ra3 {[%emt 0:00:56]} Rc1+ {[%emt 0:00:32]} 53. Kh2 {[%emt 0:00:12]} Rc2+ {[%emt 0:00:04]} 54. Kh1 {[%emt 0:00:11]} Rc4 {[%emt 0:00:40]} 55. Nd6 {[%emt 0:00:48]} Rd4 {[%emt 0:00:30]} 56. Nb5 {[%emt 0:00:54]} Rb4 {[%emt 0:00:19]} 57. Nc7 {[%emt 0:00:47]} Kg8 {[%emt 0:00:38]} 58. Ne6 {[%emt 0:00:23]} Rc4 {[%emt 0:00:16]} 59. Nd8 {[%emt 0:01:00]} Kf8 {[%emt 0:00:38]} 60. Nb7 {[%emt 0:00:09]} Ke7 {[%emt 0:00:33]} 61. Na5 {[%emt 0:00:49]} Rc2 {[%emt 0:00:36]} 62. Kg1 {[%emt 0:00:28]} Rc1+ {[%emt 0:00:12]} 63. Kf2 {[%emt 0:00:58]} Rc2+ {[%emt 0:00:21]} 64. Kf1 {[%emt 0:00:35]} Rc1+ {[%emt 0:00:16]} 65. Kf2 {[%emt 0:00:05]} Rh1 {[%emt 0:01:35]} 66. Rxa4 {[%emt 0:00:39]} Rh2+ {[%emt 0:00:12]} 67. Kf1 {[%emt 0:00:55]} Ng6 {[%emt 0:01:00]} 68. Re4+ {[%emt 0:01:39]} Kf6 {[%emt 0:00:15]} 69. Nc6 {[%emt 0:01:21]} Rxh3 {[%emt 0:00:11]} 70. Kf2 {[%emt 0:15:53]} h5 {[%emt 0:00:48]} 71. Nd4 {[%emt 0:00:00]} Rh2+ {[%emt 0:00:33]} 72. Kg1 {[%emt 0:00:00]} Rd2 {[%emt 0:00:44]} 73. Ne6 {[%emt 0:00:00]} Ne5 {[%emt 0:00:19]} 74. Nxf4 {[%emt 0:00:00]} Nxf3+ {[%emt 0:00:53]} 75. Kf1 {[%emt 0:00:00]} Nh2+ {[%emt 0:00:06]} 76. Kg1 {[%emt 0:00:00]} Nf3+ {[%emt 0:00:01]} 77. Kf1 {[%emt 0:00:00]} Kf5 {[%emt 0:00:21]} 78. Ra4 {[%emt 0:00:00]} Kg4 {[%emt 0:01:08]} 79. Ne2+ {[%emt 0:00:00]} Kg5 {[%emt 0:01:01]} 80. Ra5+ {[%emt 0:00:00]} Kg4 {[%emt 0:00:04]} 81. Ra4+ {[%emt 0:00:00]} Kg5 {[%emt 0:01:00]} 82. Ra5+ {[%emt 0:00:00]} Kh4 {[%emt 0:00:44]} 83. Ra4+ {[%emt 0:00:00]} Kg5 {[%emt 0:00:28]} 84. Ra5+ {[%emt 0:00:00]} Kh6 {[%emt 0:00:09]} 85. Ra6+ {[%emt 0:00:00]} Kg7 {[%emt 0:00:07]} 86. Ra7+ {[%emt 0:00:30]} Kf8 {[%emt 0:00:21]} 87. Ra5 {[%emt 0:02:33]} Nh2+ {[%emt 0:00:22]} 88. Ke1 {[%emt 0:00:23]} Nf3+ {[%emt 0:00:13]} 89. Kf1 {[%emt 0:00:09]} Nh2+ {[%emt 0:01:11]} 90. Ke1 {[%emt 0:00:15]} Rb2 {[%emt 0:00:11]} 91. Rxh5 {[%emt 0:00:35]} Nf3+ {[%emt 0:00:11]} 92. Kf1 {[%emt 0:00:37]} Nd2+ {[%emt 0:00:14]} 93. Kf2 {[%emt 0:00:43]} Ne4+ {[%emt 0:00:10]} 94. Ke3 {[%emt 0:00:17]} Rxe2+ {[%emt 0:00:11]} 95. Kxe2 {[%emt 0:00:04]} Ng3+ {[%emt 0:00:04]} 96. Kf3 {[%emt 0:00:17]} Nxh5 {[%emt 0:00:31]} 97. Ke4 1/2-1/2

[Event "FIDE World Cup G12-B 2024"]
[Site "Batumi"]
[Date "2024.06.28"]
[Round "6.10"]
[White "Nakashidze, Nino"]
[Black "Rusitashvili, Tea"]
[Result "0-1"]
[ECO "B33"]
[WhiteElo "1618"]
[BlackElo "1535"]
[Annotator "NA RC"]
[PlyCount "132"]
[EventDate "2024.06.23"]
[EventType "swiss"]
[EventCountry "GEO"]
[SourceTitle "playchess.com"]
[Source "ChessBase"]
[SourceQuality "1"]
[TimeControl "5400+30"]

1. e4 {[%emt 0:00:02]} c5 {[%emt 0:00:05]} 2. Nf3 {[%emt 0:00:03]} Nc6 {[%emt 0:00:11]} 3. d4 {[%emt 0:00:04]} cxd4 {[%emt 0:00:09]} 4. Nxd4 {[%emt 0:00:10]} Nf6 {[%emt 0:00:05]} 5. Nc3 {[%emt 0:00:09]} e5 {[%emt 0:00:37]} 6. Ndb5 {[%emt 0:00:06]} d6 {[%emt 0:00:11]} 7. Bg5 {[%emt 0:00:28]} a6 {[%emt 0:00:11]} 8. Na3 {[%emt 0:00:20]} b5 {[%emt 0:00:40]} 9. Bxf6 {[%emt 0:00:11]} gxf6 {[%emt 0:00:15]} 10. Nd5 {[%emt 0:00:08]} Bg7 {[%emt 0:00:07]} 11. c3 {[%emt 0:02:31]} Ne7 {[%emt 0:03:07]} 12. Nc2 {[%emt 0:01:05]} O-O {[%emt 0:02:02]} 13. Nce3 {[%emt 0:01:17]} Be6 {[%emt 0:02:17]} 14. Be2 {[%emt 0:02:01]} Bxd5 {[%emt 0:09:37]} 15. Nxd5 {[%emt 0:00:56]} Nxd5 {[%emt 0:01:23]} 16. Qxd5 {[%emt 0:02:07]} Qd7 {[%emt 0:00:23]} 17. O-O {[%emt 0:04:09]} f5 {[%emt 0:04:08]} 18. exf5 {[%emt 0:07:30]} Qxf5 {[%emt 0:00:45]} 19. Bd3 {[%emt 0:03:00]} Qe6 {[%emt 0:06:01]} 20. Qxe6 {[%emt 0:06:34]} fxe6 {[%emt 0:00:05]} 21. g3 {[%emt 0:02:52]} d5 {[%emt 0:04:43]} 22. f3 {[%emt 0:01:45]} Rf7 {[%emt 0:03:40]} 23. Kg2 {[%emt 0:06:37]} Bf6 {[%emt 0:04:32]} 24. Rf2 {[%emt 0:14:57]} Be7 {[%emt 0:06:39]} 25. Re1 {[%emt 0:05:11]} Bd6 {[%emt 0:02:07]} 26. Rff1 {[%emt 0:02:11]} Raf8 {[%emt 0:02:51]} 27. b4 {[%emt 0:08:48]} Rc7 {[%emt 0:01:49]} 28. Rc1 {[%emt 0:01:06]} Rfc8 {[%emt 0:02:02]} 29. Rfe1 {[%emt 0:11:53]} Rxc3 {[%emt 0:02:04]} 30. Rxc3 {[%emt 0:00:13]} Rxc3 {[%emt 0:00:05]} 31. Bb1 {[%emt 0:01:09]} Rc4 {[%emt 0:01:34]} 32. Kf2 {[%emt 0:03:07]} Rxb4 {[%emt 0:01:00]} 33. Rc1 {[%emt 0:00:52]} Rc4 {[%emt 0:02:01]} 34. Rd1 {[%emt 0:01:54]} Bc5+ {[%emt 0:00:38]} 35. Ke2 {[%emt 0:00:31]} Rc3 {[%emt 0:00:23]} 36. Rf1 {[%emt 0:03:04]} Re3+ {[%emt 0:02:40]} 37. Kd2 {[%emt 0:01:07]} d4 {[%emt 0:01:43]} 38. Be4 {[%emt 0:03:37]} Bb4+ {[%emt 0:01:00]} 39. Kc2 {[%emt 0:00:32]} Re2+ {[%emt 0:01:31]} 40. Kb1 {[%emt 0:03:29]} Rxh2 {[%emt 0:01:07]} 41. Rc1 {[%emt 0:01:07]} Bc3 {[%emt 0:00:24]} 42. Rf1 {[%emt 0:00:30]} Rb2+ {[%emt 0:00:21]} 43. Kc1 {[%emt 0:00:10]} Rxa2 {[%emt 0:00:20]} 44. Rd1 {[%emt 0:00:57]} b4 {[%emt 0:03:47]} 45. g4 {[%emt 0:01:11]} b3 {[%emt 0:01:39]} 46. g5 {[%emt 0:00:39]} b2+ {[%emt 0:01:54]} 47. Kc2 {[%emt 0:00:36]} Ra1 {[%emt 0:00:46]} 48. Rb1 {[%emt 0:00:47]} Rxb1 {[%emt 0:00:59]} 49. Kxb1 {[%emt 0:00:05]} Kg7 {[%emt 0:00:20]} 50. Kc2 {[%emt 0:00:23]} a5 {[%emt 0:00:32]} 51. Kb1 {[%emt 0:00:00]} h6 {[%emt 0:00:00]} 52. gxh6+ {[%emt 0:00:13]} Kxh6 {[%emt 0:00:00]} 53. Ka2 {[%emt 0:00:20]} Kg5 {[%emt 0:00:00]} 54. Kb3 {[%emt 0:00:46]} Kf4 {[%emt 0:00:00]} 55. Kc2 {[%emt 0:00:40]} Ke3 {[%emt 0:00:27]} 56. Kb3 {[%emt 0:00:36]} Kd2 {[%emt 0:00:54]} 57. Ka2 {[%emt 0:00:23]} d3 {[%emt 0:00:17]} 58. Kb1 {[%emt 0:00:38]} Ke2 {[%emt 0:00:17]} 59. Ka2 {[%emt 0:01:13]} d2 {[%emt 0:01:00]} 60. Bc2 {[%emt 0:00:15]} d1=Q {[%emt 0:00:28]} 61. Bxd1+ {[%emt 0:00:06]} Kxd1 {[%emt 0:00:13]} 62. Kb1 {[%emt 0:00:03]} Kd2 {[%emt 0:00:13]} 63. f4 {[%emt 0:00:17]} exf4 {[%emt 0:00:50]} 64. Ka2 {[%emt 0:00:05]} Kc2 {[%emt 0:00:33]} 65. Ka3 {[%emt 0:00:07]} b1=Q {[%emt 0:00:31]} 66. Ka4 {[%emt 0:00:09]} Qb4# {[%emt 0:00:06]} 0-1

[Event "FIDE World Cup G12-B 2024"]
[Site "Batumi"]
[Date "2024.06.28"]
[Round "6.11"]
[White "Chiokadze, Barbare"]
[Black "Bechvaia, Anastasia"]
[Result "1-0"]
[ECO "E73"]
[WhiteElo "1461"]
[BlackElo "1549"]
[Annotator "NA RC"]
[PlyCount "91"]
[EventDate "2024.06.23"]
[EventType "swiss"]
[EventCountry "GEO"]
[SourceTitle "playchess.com"]
[Source "ChessBase"]
[SourceQuality "1"]
[TimeControl "5400+30"]

1. d4 {[%emt 0:00:01]} d6 {[%emt 0:00:03]} 2. c4 {[%emt 0:00:03]} Nf6 {[%emt 0:00:04]} 3. Nc3 {[%emt 0:00:04]} g6 {[%emt 0:00:05]} 4. e4 {[%emt 0:00:03]} Bg7 {[%emt 0:00:04]} 5. Be2 {[%emt 0:00:03]} O-O {[%emt 0:00:07]} 6. Bg5 {[%emt 0:00:02]} e5 {[%emt 0:00:14]} 7. dxe5 {[%emt 0:00:12]} dxe5 {[%emt 0:00:10]} 8. Qxd8 {[%emt 0:00:03]} Rxd8 {[%emt 0:00:03]} 9. Nd5 {[%emt 0:00:05]} Nbd7 {[%emt 0:00:14]} 10. Nxc7 {[%emt 0:00:39]} Rb8 {[%emt 0:00:07]} 11. Nd5 {[%emt 0:00:17]} h6 {[%emt 0:00:13]} 12. Nxf6+ {[%emt 0:00:43]} Nxf6 {[%emt 0:00:07]} 13. Bxf6 {[%emt 0:00:58]} Bxf6 {[%emt 0:00:05]} 14. Nf3 {[%emt 0:00:02]} Be6 {[%emt 0:00:19]} 15. O-O {[%emt 0:00:11]} a5 {[%emt 0:00:18]} 16. Rad1 {[%emt 0:00:46]} Rbc8 {[%emt 0:01:19]} 17. b3 {[%emt 0:01:49]} Rxd1 {[%emt 0:01:11]} 18. Rxd1 {[%emt 0:00:06]} a4 {[%emt 0:00:39]} 19. bxa4 {[%emt 0:03:03]} Bxc4 {[%emt 0:00:21]} 20. Rc1 {[%emt 0:00:05]} Be6 {[%emt 0:00:07]} 21. Rxc8+ {[%emt 0:00:48]} Bxc8 {[%emt 0:00:07]} 22. Nd2 {[%emt 0:00:03]} Kf8 {[%emt 0:00:29]} 23. Nc4 {[%emt 0:00:16]} Ke7 {[%emt 0:00:25]} 24. Nb6 {[%emt 0:00:53]} Be6 {[%emt 0:00:10]} 25. Bc4 {[%emt 0:04:28]} Bxc4 {[%emt 0:02:15]} 26. Nxc4 {[%emt 0:00:04]} Kd7 {[%emt 0:00:39]} 27. Kf1 {[%emt 0:01:19]} Kc6 {[%emt 1:34:05]} 28. Ke2 {[%emt 0:00:20]} Kc5 {[%emt 0:00:00]} 29. Kd3 {[%emt 0:00:26]} g5 {[%emt 0:00:00]} 30. Kc3 {[%emt 0:00:56]} Bd8 {[%emt 0:00:00]} 31. Kd3 {[%emt 0:02:51]} f6 {[%emt 0:00:00]} 32. a3 {[%emt 0:02:21]} b6 {[%emt 0:00:00]} 33. Ne3 {[%emt 0:01:11]} h5 {[%emt 0:00:00]} 34. Nf5 {[%emt 0:01:48]} h4 {[%emt 0:00:00]} 35. g3 {[%emt 0:00:32]} hxg3 {[%emt 0:00:00]} 36. fxg3 {[%emt 0:00:14]} b5 {[%emt 0:00:00]} 37. axb5 {[%emt 0:00:40]} Kxb5 {[%emt 0:00:00]} 38. h4 {[%emt 0:00:04]} gxh4 {[%emt 0:00:00]} 39. gxh4 {[%emt 0:00:05]} Ka4 {[%emt 0:00:00]} 40. h5 {[%emt 0:00:05]} Kxa3 {[%emt 0:00:00]} 41. h6 {[%emt 0:00:04]} Ba5 {[%emt 0:00:00]} 42. h7 {[%emt 0:00:04]} Kb2 {[%emt 0:00:00]} 43. h8=Q {[%emt 0:00:10]} Kc1 {[%emt 0:00:00]} 44. Qc8+ {[%emt 0:00:06]} Kd1 {[%emt 0:00:00]} 45. Qc2+ {[%emt 0:00:03]} Ke1 {[%emt 0:00:00]} 46. Qe2# {[%emt 0:00:03]} 1-0